[Event "Late-Titled-Tuesday-Blitz-March-19-2024"]
[Site "Chess.com"]
[Date "2024.03.19"]
[Round "9"]
[White "Schattman"]
[Black "BebeBonito2022"]
[Result "1-0"]
[WhiteElo "2507"]
[BlackElo "2298"]
[TimeControl "180+1"]
[EndTime "15:43:33 PDT"]
[Termination "Schattman won by resignation"]

1. b3 {[%clk 0:03:00.9]} 1... d5 {[%clk 0:02:59.1]} 2. Nf3 {[%clk 0:02:59]} 2...
c5 {[%clk 0:02:57.7]} 3. e3 {[%clk 0:02:58.3]} 3... a6 {[%clk 0:02:57.7]} 4. Bb2
{[%clk 0:02:54.1]} 4... Nc6 {[%clk 0:02:57.6]} 5. d4 {[%clk 0:02:47.9]} 5...
cxd4 {[%clk 0:02:56.4]} 6. Nxd4 {[%clk 0:02:47.8]} 6... Nf6 {[%clk 0:02:56.3]}
7. Be2 {[%clk 0:02:43.6]} 7... e6 {[%clk 0:02:56.6]} 8. O-O {[%clk 0:02:42.9]}
8... Be7 {[%clk 0:02:57]} 9. Nd2 {[%clk 0:02:30.6]} 9... O-O {[%clk 0:02:51.6]}
10. c4 {[%clk 0:02:30.7]} 10... Bd7 {[%clk 0:02:33.3]} 11. cxd5 {[%clk
0:02:23.9]} 11... Nxd5 {[%clk 0:02:31.1]} 12. Rc1 {[%clk 0:02:15.9]} 12... Nxd4
{[%clk 0:02:26.8]} 13. Bxd4 {[%clk 0:02:15]} 13... Bf6 {[%clk 0:02:27.2]} 14.
Nc4 {[%clk 0:02:13.4]} 14... Bxd4 {[%clk 0:02:24]} 15. Qxd4 {[%clk 0:02:11.9]}
15... Bc6 {[%clk 0:02:23.7]} 16. Ne5 {[%clk 0:02:07.5]} 16... Bb5 {[%clk
0:02:04.7]} 17. Bc4 {[%clk 0:01:50.8]} 17... Bxc4 {[%clk 0:01:35.1]} 18. Rxc4
{[%clk 0:01:49.1]} 18... Qa5 {[%clk 0:01:04.6]} 19. Ra4 {[%clk 0:01:42.3]} 19...
Qc7 {[%clk 0:01:02]} 20. Rc4 {[%clk 0:01:33.1]} 20... Qa5 {[%clk 0:01:01.8]} 21.
g3 {[%clk 0:00:50.1]} 21... Qxa2 {[%clk 0:00:57.4]} 22. e4 {[%clk 0:00:46.4]}
22... Nf6 {[%clk 0:00:51.1]} 23. Qb6 {[%clk 0:00:37.1]} 23... Rad8 {[%clk
0:00:28.3]} 24. Qxb7 {[%clk 0:00:30.7]} 24... Rd2 {[%clk 0:00:27.9]} 25. Qb6
{[%clk 0:00:25.4]} 25... Rb2 {[%clk 0:00:19.1]} 26. Rb4 {[%clk 0:00:21.8]} 26...
Rb1 {[%clk 0:00:18.5]} 27. Rxb1 {[%clk 0:00:15.2]} 27... Qxb1+ {[%clk
0:00:18.8]} 28. Kg2 {[%clk 0:00:16.1]} 28... Nxe4 {[%clk 0:00:18.7]} 29. Qe3
{[%clk 0:00:13.2]} 29... Nf6 {[%clk 0:00:17.1]} 30. Ra4 {[%clk 0:00:13.3]} 30...
Nd5 {[%clk 0:00:17.3]} 31. Qd3 {[%clk 0:00:10]} 31... Qxd3 {[%clk 0:00:16.6]}
32. Nxd3 {[%clk 0:00:09.5]} 32... Ra8 {[%clk 0:00:15]} 33. Nc5 {[%clk
0:00:09.4]} 33... a5 {[%clk 0:00:14.4]} 34. Nb7 {[%clk 0:00:09.3]} 34... f6
{[%clk 0:00:13.9]} 35. Rxa5 {[%clk 0:00:08.1]} 35... Rb8 {[%clk 0:00:14]} 36.
Nc5 {[%clk 0:00:07.4]} 36... Kf7 {[%clk 0:00:13.7]} 37. Ra7+ {[%clk 0:00:06.8]}
37... Kg6 {[%clk 0:00:13.8]} 38. Nxe6 {[%clk 0:00:05.9]} 38... Rxb3 {[%clk
0:00:13.4]} 39. Rxg7+ {[%clk 0:00:05.1]} 39... Kf5 {[%clk 0:00:13.9]} 40. Nd4+
{[%clk 0:00:04.7]} 1-0

[Event "Late-Titled-Tuesday-Blitz-March-19-2024"]
[Site "Chess.com"]
[Date "2024.03.19"]
[Round "9"]
[White "miraitrunks"]
[Black "rhwr"]
[Result "0-1"]
[WhiteElo "2176"]
[BlackElo "2305"]
[TimeControl "180+1"]
[EndTime "15:43:35 PDT"]
[Termination "rhwr won by resignation"]

1. e4 {[%clk 0:03:00.9]} 1... c5 {[%clk 0:02:58.5]} 2. Nc3 {[%clk 0:02:53]} 2...
Nc6 {[%clk 0:02:57.4]} 3. Nge2 {[%clk 0:02:50.3]} 3... g6 {[%clk 0:02:57.3]} 4.
d3 {[%clk 0:02:50]} 4... Bg7 {[%clk 0:02:56.7]} 5. Be3 {[%clk 0:02:49.8]} 5...
d6 {[%clk 0:02:56.6]} 6. h3 {[%clk 0:02:49.9]} 6... e6 {[%clk 0:02:52.2]} 7. g4
{[%clk 0:02:49.7]} 7... Nge7 {[%clk 0:02:45]} 8. Bg2 {[%clk 0:02:47.8]} 8... O-O
{[%clk 0:02:42.8]} 9. Qd2 {[%clk 0:02:45.7]} 9... Nd4 {[%clk 0:02:36.6]} 10. O-O
{[%clk 0:02:17]} 10... f5 {[%clk 0:02:26.7]} 11. exf5 {[%clk 0:02:13.8]} 11...
gxf5 {[%clk 0:02:24.6]} 12. Bh6 {[%clk 0:02:10.8]} 12... Ng6 {[%clk 0:02:12.5]}
13. Bxg7 {[%clk 0:02:10.4]} 13... Kxg7 {[%clk 0:02:12.2]} 14. Nxd4 {[%clk
0:02:07.2]} 14... cxd4 {[%clk 0:02:11.7]} 15. Ne2 {[%clk 0:02:07.3]} 15... e5
{[%clk 0:02:10.2]} 16. gxf5 {[%clk 0:01:56.8]} 16... Rxf5 {[%clk 0:02:04.7]} 17.
f4 {[%clk 0:01:56]} 17... Qe7 {[%clk 0:01:10.8]} 18. fxe5 {[%clk 0:01:52.3]}
18... dxe5 {[%clk 0:01:10]} 19. Rxf5 {[%clk 0:01:39]} 19... Bxf5 {[%clk
0:01:09.5]} 20. Ng3 {[%clk 0:01:39.6]} 20... Rf8 {[%clk 0:01:03.5]} 21. Rf1
{[%clk 0:01:36.8]} 21... Bc8 {[%clk 0:01:01.9]} 22. Nh5+ {[%clk 0:01:25.8]}
22... Kg8 {[%clk 0:00:58]} 23. Be4 {[%clk 0:01:04.8]} 23... Rxf1+ {[%clk
0:00:48.6]} 24. Kxf1 {[%clk 0:01:05.7]} 24... Bxh3+ {[%clk 0:00:45.7]} 25. Kg1
{[%clk 0:01:05.9]} 25... Bg4 {[%clk 0:00:37]} 26. Bd5+ {[%clk 0:00:44.3]} 26...
Kh8 {[%clk 0:00:35.9]} 27. Qh6 {[%clk 0:00:43.1]} 27... Bxh5 {[%clk 0:00:32.9]}
28. Qxh5 {[%clk 0:00:44]} 28... Nf4 {[%clk 0:00:30.7]} 29. Qf3 {[%clk
0:00:38.7]} 29... Qg5+ {[%clk 0:00:17.5]} 30. Kf1 {[%clk 0:00:37.3]} 30... Nxd5
{[%clk 0:00:11.6]} 31. Qxd5 {[%clk 0:00:36.9]} 31... Qc1+ {[%clk 0:00:11.8]} 32.
Kg2 {[%clk 0:00:36]} 32... Qxc2+ {[%clk 0:00:11.5]} 33. Kf3 {[%clk 0:00:36.4]}
33... Qxd3+ {[%clk 0:00:11.1]} 34. Kg4 {[%clk 0:00:36.1]} 34... Qe2+ {[%clk
0:00:09.9]} 35. Kg5 {[%clk 0:00:31.4]} 35... Qe3+ {[%clk 0:00:03.8]} 36. Kf5
{[%clk 0:00:23.8]} 36... Qf4+ {[%clk 0:00:03.9]} 37. Ke6 {[%clk 0:00:24.4]}
37... b6 {[%clk 0:00:02.8]} 38. Qa8+ {[%clk 0:00:17.9]} 38... Kg7 {[%clk
0:00:03.5]} 39. Qxa7+ {[%clk 0:00:18.3]} 39... Kg6 {[%clk 0:00:04.3]} 40. Qe7
{[%clk 0:00:15.9]} 40... Qf5+ {[%clk 0:00:03.5]} 41. Kd6 {[%clk 0:00:16.3]}
41... Qf6+ {[%clk 0:00:03.7]} 42. Kd7 {[%clk 0:00:15.8]} 42... Qxe7+ {[%clk
0:00:04.2]} 43. Kxe7 {[%clk 0:00:16.7]} 43... d3 {[%clk 0:00:05]} 0-1

[Event "Late-Titled-Tuesday-Blitz-March-19-2024"]
[Site "Chess.com"]
[Date "2024.03.19"]
[Round "9"]
[White "jcmesafischer"]
[Black "finec2"]
[Result "1-0"]
[WhiteElo "2355"]
[BlackElo "2225"]
[TimeControl "180+1"]
[EndTime "15:43:35 PDT"]
[Termination "jcmesafischer won by resignation"]

1. e4 {[%clk 0:02:55.2]} 1... c5 {[%clk 0:02:59.6]} 2. Nc3 {[%clk 0:02:53.7]}
2... Nc6 {[%clk 0:02:59.5]} 3. f4 {[%clk 0:02:53.4]} 3... g6 {[%clk 0:02:59.3]}
4. Nf3 {[%clk 0:02:52.8]} 4... Bg7 {[%clk 0:02:59.9]} 5. Bc4 {[%clk 0:02:53.1]}
5... e6 {[%clk 0:02:59.5]} 6. d3 {[%clk 0:02:53.5]} 6... a6 {[%clk 0:02:59.2]}
7. a4 {[%clk 0:02:51.4]} 7... Nge7 {[%clk 0:02:58.7]} 8. Qe2 {[%clk 0:02:44.1]}
8... O-O {[%clk 0:02:57.3]} 9. O-O {[%clk 0:02:43]} 9... d5 {[%clk 0:02:57.2]}
10. Bb3 {[%clk 0:02:41.9]} 10... f5 {[%clk 0:02:42.1]} 11. Bd2 {[%clk
0:02:32.7]} 11... h6 {[%clk 0:02:41.1]} 12. Rae1 {[%clk 0:02:31.3]} 12... Rb8
{[%clk 0:02:14.9]} 13. h3 {[%clk 0:02:15]} 13... b5 {[%clk 0:02:13.8]} 14. exd5
{[%clk 0:02:06.7]} 14... exd5 {[%clk 0:02:12.8]} 15. Kh1 {[%clk 0:01:55.8]}
15... c4 {[%clk 0:02:11.8]} 16. dxc4 {[%clk 0:01:47.5]} 16... bxc4 {[%clk
0:01:55.9]} 17. Nxd5 {[%clk 0:01:45.9]} 17... cxb3 {[%clk 0:01:32]} 18. Nxe7+
{[%clk 0:01:43.4]} 18... Nxe7 {[%clk 0:01:32.9]} 19. Qxe7 {[%clk 0:01:35.2]}
19... Qxe7 {[%clk 0:01:32.8]} 20. Rxe7 {[%clk 0:01:36.1]} 20... bxc2 {[%clk
0:01:32.7]} 21. Rxg7+ {[%clk 0:01:23.8]} 21... Kxg7 {[%clk 0:01:31]} 22. Bc3+
{[%clk 0:01:23.5]} 22... Kh7 {[%clk 0:01:29.7]} 23. Rc1 {[%clk 0:01:16.6]} 23...
Be6 {[%clk 0:01:29.5]} 24. Rxc2 {[%clk 0:01:14.9]} 24... Bb3 {[%clk 0:01:29.4]}
25. Rd2 {[%clk 0:01:13.7]} 25... Rb7 {[%clk 0:01:19]} 26. a5 {[%clk 0:01:05.9]}
26... Re8 {[%clk 0:01:17.6]} 27. Rd6 {[%clk 0:01:03]} 27... Bc4 {[%clk
0:01:15.8]} 28. Ne5 {[%clk 0:01:02.4]} 28... Re6 {[%clk 0:01:13.2]} 29. Nxc4
{[%clk 0:01:01.6]} 29... Rxd6 {[%clk 0:01:11.9]} 30. Nxd6 {[%clk 0:01:02.5]}
30... Rd7 {[%clk 0:01:11.1]} 31. Be5 {[%clk 0:01:01.4]} 31... Kg8 {[%clk
0:01:09.6]} 32. b4 {[%clk 0:01:01.4]} 32... Kf8 {[%clk 0:01:07.6]} 33. b5 {[%clk
0:01:00]} 33... axb5 {[%clk 0:01:07.3]} 34. Nxb5 {[%clk 0:01:00.6]} 34... Rd5
{[%clk 0:01:05.2]} 35. Nd4 {[%clk 0:00:11.9]} 35... Rxa5 {[%clk 0:01:04]} 36. h4
{[%clk 0:00:12.2]} 36... Kf7 {[%clk 0:00:58]} 37. h5 {[%clk 0:00:11.4]} 37... g5
{[%clk 0:00:49.8]} 38. g3 {[%clk 0:00:10.6]} 38... gxf4 {[%clk 0:00:45.3]} 39.
gxf4 {[%clk 0:00:11.5]} 39... Ra6 {[%clk 0:00:37.6]} 40. Nxf5 {[%clk 0:00:10.9]}
40... Ke6 {[%clk 0:00:37.2]} 41. Nxh6 {[%clk 0:00:09.3]} 41... Kd5 {[%clk
0:00:38]} 42. Kg2 {[%clk 0:00:09.3]} 42... Ke4 {[%clk 0:00:38.3]} 43. Kg3 {[%clk
0:00:09.6]} 43... Rxh6 {[%clk 0:00:37.2]} 44. Kg4 {[%clk 0:00:10.1]} 44... Rh7
{[%clk 0:00:33.3]} 45. Kg5 {[%clk 0:00:10.2]} 45... Kd5 {[%clk 0:00:30.3]} 46.
h6 {[%clk 0:00:10.1]} 46... Ke6 {[%clk 0:00:29.9]} 47. Kg6 {[%clk 0:00:10.4]}
47... Ra7 {[%clk 0:00:28.4]} 48. h7 {[%clk 0:00:10.7]} 48... Kd5 {[%clk
0:00:27.3]} 49. h8=Q {[%clk 0:00:10.2]} 49... Ra6+ {[%clk 0:00:27.1]} 50. Kg5
{[%clk 0:00:09.4]} 1-0

[Event "Late-Titled-Tuesday-Blitz-March-19-2024"]
[Site "Chess.com"]
[Date "2024.03.19"]
[Round "9"]
[White "karinachess1"]
[Black "Sandstad"]
[Result "1-0"]
[WhiteElo "2627"]
[BlackElo "2501"]
[TimeControl "180+1"]
[EndTime "15:43:36 PDT"]
[Termination "karinachess1 won by resignation"]

1. d4 {[%clk 0:03:00.9]} 1... Nf6 {[%clk 0:02:59.7]} 2. c4 {[%clk 0:03:01.2]}
2... e6 {[%clk 0:02:59.8]} 3. Nc3 {[%clk 0:03:01.4]} 3... d5 {[%clk 0:03:00.3]}
4. cxd5 {[%clk 0:03:01.5]} 4... exd5 {[%clk 0:03:01.2]} 5. Bg5 {[%clk
0:03:01.4]} 5... c6 {[%clk 0:03:01.5]} 6. e3 {[%clk 0:03:01.7]} 6... Bf5 {[%clk
0:03:01.8]} 7. Qf3 {[%clk 0:02:58.9]} 7... Bg6 {[%clk 0:03:02.1]} 8. Bxf6 {[%clk
0:02:59.3]} 8... Qxf6 {[%clk 0:03:02.9]} 9. Qxf6 {[%clk 0:02:59.6]} 9... gxf6
{[%clk 0:03:03.8]} 10. h4 {[%clk 0:02:59.6]} 10... Nd7 {[%clk 0:03:03.4]} 11.
Kd2 {[%clk 0:02:52.7]} 11... Nb6 {[%clk 0:03:02.7]} 12. b3 {[%clk 0:02:43]}
12... Bb4 {[%clk 0:02:57.4]} 13. a3 {[%clk 0:02:42.5]} 13... Be7 {[%clk
0:02:56.1]} 14. h5 {[%clk 0:02:38.8]} 14... Bf5 {[%clk 0:02:55.7]} 15. Bd3
{[%clk 0:02:39.2]} 15... Bxd3 {[%clk 0:02:53.8]} 16. Kxd3 {[%clk 0:02:40.1]}
16... Rg8 {[%clk 0:02:54]} 17. g3 {[%clk 0:02:38.1]} 17... Nc8 {[%clk 0:02:54]}
18. Nge2 {[%clk 0:02:34.2]} 18... Nd6 {[%clk 0:02:51.3]} 19. Nf4 {[%clk
0:02:33]} 19... Kd7 {[%clk 0:02:46.5]} 20. a4 {[%clk 0:02:23.2]} 20... f5 {[%clk
0:02:45.7]} 21. Ke2 {[%clk 0:02:16.7]} 21... Ne4 {[%clk 0:02:42]} 22. Rac1
{[%clk 0:02:16]} 22... Bb4 {[%clk 0:02:37.9]} 23. Na2 {[%clk 0:02:13.2]} 23...
Bd6 {[%clk 0:02:35.8]} 24. Nd3 {[%clk 0:02:00.4]} 24... Rae8 {[%clk 0:02:25.3]}
25. b4 {[%clk 0:01:51.6]} 25... Bxg3 {[%clk 0:02:19.3]} 26. fxg3 {[%clk
0:01:46.1]} 26... Nxg3+ {[%clk 0:02:20.2]} 27. Kf3 {[%clk 0:01:44.6]} 27... Nxh1
{[%clk 0:02:19.3]} 28. Rxh1 {[%clk 0:01:45.5]} 28... Rg4 {[%clk 0:02:14.6]} 29.
Ne5+ {[%clk 0:01:44.9]} 29... Rxe5 {[%clk 0:02:12.1]} 30. dxe5 {[%clk
0:01:45.8]} 30... Ke6 {[%clk 0:02:11.4]} 31. Rb1 {[%clk 0:01:30.4]} 31... Kxe5
{[%clk 0:02:09.4]} 32. Nc3 {[%clk 0:01:29.5]} 32... a6 {[%clk 0:01:40.8]} 33.
Ne2 {[%clk 0:01:26.9]} 33... Rc4 {[%clk 0:01:26.1]} 34. Rg1 {[%clk 0:01:13.6]}
34... h6 {[%clk 0:01:13.2]} 35. Rb1 {[%clk 0:00:49.9]} 35... b6 {[%clk
0:01:08.3]} 36. Rb3 {[%clk 0:00:38.5]} 36... Kf6 {[%clk 0:01:00.4]} 37. a5
{[%clk 0:00:33.1]} 37... b5 {[%clk 0:00:54.8]} 38. Nf4 {[%clk 0:00:29.4]} 38...
d4 {[%clk 0:00:45.9]} 39. exd4 {[%clk 0:00:25.5]} 39... Rxd4 {[%clk 0:00:46.8]}
40. Nd3 {[%clk 0:00:26.1]} 40... Kg5 {[%clk 0:00:39.3]} 41. Nc5 {[%clk
0:00:25.9]} 41... Kxh5 {[%clk 0:00:33.1]} 42. Nxa6 {[%clk 0:00:25.7]} 42... Kg5
{[%clk 0:00:31.6]} 43. Nc5 {[%clk 0:00:20.3]} 43... Rd8 {[%clk 0:00:28.6]} 44.
a6 {[%clk 0:00:20.7]} 44... Ra8 {[%clk 0:00:28.4]} 45. Ra3 {[%clk 0:00:20.4]}
45... h5 {[%clk 0:00:27.9]} 46. a7 {[%clk 0:00:20.5]} 46... h4 {[%clk
0:00:27.1]} 47. Nd7 {[%clk 0:00:20.7]} 47... h3 {[%clk 0:00:26.4]} 48. Kg3
{[%clk 0:00:21.1]} 48... c5 {[%clk 0:00:22.1]} 49. Nb6 {[%clk 0:00:14.9]} 49...
cxb4 {[%clk 0:00:22.2]} 50. Ra1 {[%clk 0:00:13.8]} 50... Rxa7 {[%clk 0:00:19.7]}
51. Rxa7 {[%clk 0:00:14.7]} 51... b3 {[%clk 0:00:19.7]} 52. Ra1 {[%clk 0:00:15]}
1-0

[Event "Late-Titled-Tuesday-Blitz-March-19-2024"]
[Site "Chess.com"]
[Date "2024.03.19"]
[Round "9"]
[White "Mariia89"]
[Black "jaskol95"]
[Result "0-1"]
[WhiteElo "2286"]
[BlackElo "2501"]
[TimeControl "180+1"]
[EndTime "15:43:36 PDT"]
[Termination "jaskol95 won on time"]

1. d4 {[%clk 0:03:00.1]} 1... d5 {[%clk 0:03:00.9]} 2. c4 {[%clk 0:02:58.6]}
2... e5 {[%clk 0:03:01.5]} 3. cxd5 {[%clk 0:02:58.5]} 3... Qxd5 {[%clk
0:02:54.4]} 4. Nc3 {[%clk 0:02:41.8]} 4... Qxd4 {[%clk 0:02:28.5]} 5. Qxd4
{[%clk 0:02:41.6]} 5... exd4 {[%clk 0:02:29.4]} 6. Nb5 {[%clk 0:02:41.7]} 6...
Bd6 {[%clk 0:02:29.6]} 7. Nxd6+ {[%clk 0:02:39.7]} 7... cxd6 {[%clk 0:02:29.9]}
8. Bf4 {[%clk 0:02:38.6]} 8... Nc6 {[%clk 0:02:16.7]} 9. Bxd6 {[%clk 0:02:34]}
9... Be6 {[%clk 0:02:16.9]} 10. Nf3 {[%clk 0:02:08.8]} 10... O-O-O {[%clk
0:02:16.6]} 11. Ba3 {[%clk 0:02:07.5]} 11... Nf6 {[%clk 0:02:11.7]} 12. g3
{[%clk 0:02:02.9]} 12... d3 {[%clk 0:02:03.1]} 13. O-O-O {[%clk 0:01:32.3]}
13... Ne4 {[%clk 0:01:40.1]} 14. Rxd3 {[%clk 0:01:15.8]} 14... Nxf2 {[%clk
0:01:39.9]} 15. Rxd8+ {[%clk 0:01:15.4]} 15... Rxd8 {[%clk 0:01:40.8]} 16. Rg1
{[%clk 0:01:15.3]} 16... Rd1+ {[%clk 0:01:38.7]} 17. Kc2 {[%clk 0:01:15.4]}
17... Bf5+ {[%clk 0:01:33.9]} 18. Kb3 {[%clk 0:00:55.5]} 18... Rd5 {[%clk
0:00:52.2]} 19. e4 {[%clk 0:00:28.8]} 19... Nxe4 {[%clk 0:00:46.3]} 20. Bc4
{[%clk 0:00:27]} 20... Na5+ {[%clk 0:00:43.6]} 21. Kb4 {[%clk 0:00:25.7]} 21...
Nxc4 {[%clk 0:00:41.4]} 22. Kxc4 {[%clk 0:00:26.6]} 22... Be6 {[%clk 0:00:40.4]}
23. Nd4 {[%clk 0:00:16.2]} 23... Nd2+ {[%clk 0:00:30]} 24. Kc3 {[%clk
0:00:16.2]} 24... Rxd4 {[%clk 0:00:29.1]} 25. Kxd4 {[%clk 0:00:15.5]} 25... Nf3+
{[%clk 0:00:29.4]} 26. Ke4 {[%clk 0:00:15.4]} 26... Nxg1 {[%clk 0:00:30.3]} 27.
Bf8 {[%clk 0:00:12.1]} 27... g6 {[%clk 0:00:28.3]} 28. h4 {[%clk 0:00:11.9]}
28... Bxa2 {[%clk 0:00:28.1]} 29. h5 {[%clk 0:00:11.6]} 29... gxh5 {[%clk
0:00:26.5]} 30. Kf4 {[%clk 0:00:11.3]} 30... Be6 {[%clk 0:00:26.3]} 31. Kg5
{[%clk 0:00:11.2]} 31... Ne2 {[%clk 0:00:27]} 32. Bd6 {[%clk 0:00:09.3]} 32...
Kd7 {[%clk 0:00:24.2]} 33. Be5 {[%clk 0:00:09.1]} 33... Kc6 {[%clk 0:00:24.3]}
34. Kxh5 {[%clk 0:00:09.1]} 34... Kd5 {[%clk 0:00:24.9]} 35. Bb8 {[%clk
0:00:08.4]} 35... a5 {[%clk 0:00:24.8]} 36. Kh6 {[%clk 0:00:08.6]} 36... a4
{[%clk 0:00:24.8]} 37. Kxh7 {[%clk 0:00:08.4]} 37... Kc4 {[%clk 0:00:24.2]} 38.
Kg7 {[%clk 0:00:07.3]} 38... Kb3 {[%clk 0:00:24.1]} 39. Be5 {[%clk 0:00:06.9]}
39... Nxg3 {[%clk 0:00:23.5]} 40. Bxg3 {[%clk 0:00:06.2]} 40... Kxb2 {[%clk
0:00:24.2]} 41. Be5+ {[%clk 0:00:06.5]} 41... Kb1 {[%clk 0:00:24.7]} 42. Kf6
{[%clk 0:00:05.9]} 42... a3 {[%clk 0:00:24.9]} 43. Bd4 {[%clk 0:00:04.7]} 43...
a2 {[%clk 0:00:25.2]} 0-1

[Event "Late-Titled-Tuesday-Blitz-March-19-2024"]
[Site "Chess.com"]
[Date "2024.03.19"]
[Round "9"]
[White "stepanosinovsky"]
[Black "yaguigor"]
[Result "0-1"]
[WhiteElo "2361"]
[BlackElo "2584"]
[TimeControl "180+1"]
[EndTime "15:43:38 PDT"]
[Termination "yaguigor won on time"]

1. e4 {[%clk 0:03:00.9]} 1... e5 {[%clk 0:02:43.2]} 2. Nf3 {[%clk 0:03:00.8]}
2... Nc6 {[%clk 0:02:35.8]} 3. Bb5 {[%clk 0:03:00.7]} 3... f5 {[%clk 0:02:35.1]}
4. d3 {[%clk 0:02:58.6]} 4... fxe4 {[%clk 0:02:34.8]} 5. dxe4 {[%clk 0:02:56.9]}
5... Nf6 {[%clk 0:02:35.5]} 6. O-O {[%clk 0:02:55.4]} 6... Bc5 {[%clk
0:02:34.5]} 7. Nc3 {[%clk 0:02:54.2]} 7... d6 {[%clk 0:02:33.7]} 8. Qd3 {[%clk
0:02:42.2]} 8... O-O {[%clk 0:02:23.3]} 9. Be3 {[%clk 0:02:40]} 9... Bxe3 {[%clk
0:02:18.6]} 10. Qxe3 {[%clk 0:02:40.3]} 10... Kh8 {[%clk 0:02:15]} 11. Rad1
{[%clk 0:02:37]} 11... Qe7 {[%clk 0:02:13.6]} 12. Nd5 {[%clk 0:02:30.5]} 12...
Nxd5 {[%clk 0:02:11.9]} 13. exd5 {[%clk 0:02:29.8]} 13... Nd8 {[%clk 0:02:06.8]}
14. Ng5 {[%clk 0:02:16]} 14... Nf7 {[%clk 0:01:57.4]} 15. f4 {[%clk 0:01:28.4]}
15... Bg4 {[%clk 0:01:40.8]} 16. Nxf7+ {[%clk 0:01:03.2]} 16... Rxf7 {[%clk
0:01:39.3]} 17. Rde1 {[%clk 0:00:59.2]} 17... a6 {[%clk 0:01:35]} 18. Bd3 {[%clk
0:00:24.7]} 18... Re8 {[%clk 0:01:29]} 19. fxe5 {[%clk 0:00:17.5]} 19... Rxf1+
{[%clk 0:01:25.3]} 20. Bxf1 {[%clk 0:00:15.7]} 20... Qxe5 {[%clk 0:01:19.7]} 21.
Qxe5 {[%clk 0:00:15.4]} 21... dxe5 {[%clk 0:01:18.4]} 22. c4 {[%clk 0:00:15.1]}
22... g6 {[%clk 0:01:12.9]} 23. b4 {[%clk 0:00:14.3]} 23... Kg7 {[%clk
0:01:10.5]} 24. c5 {[%clk 0:00:14]} 24... Bd7 {[%clk 0:01:09]} 25. Kf2 {[%clk
0:00:13.5]} 25... Rf8+ {[%clk 0:00:58.4]} 26. Ke3 {[%clk 0:00:13.3]} 26... Kf6
{[%clk 0:00:56.8]} 27. Bc4 {[%clk 0:00:11.7]} 27... Bf5 {[%clk 0:00:53.7]} 28.
Rf1 {[%clk 0:00:10.8]} 28... h5 {[%clk 0:00:48.5]} 29. g3 {[%clk 0:00:10.7]}
29... Rd8 {[%clk 0:00:45.8]} 30. a4 {[%clk 0:00:09.8]} 30... Kg5 {[%clk
0:00:44.1]} 31. Rf2 {[%clk 0:00:07.2]} 31... h4 {[%clk 0:00:41.2]} 32. b5 {[%clk
0:00:06.1]} 32... hxg3 {[%clk 0:00:39.9]} 33. hxg3 {[%clk 0:00:05.9]} 33... axb5
{[%clk 0:00:39.3]} 34. axb5 {[%clk 0:00:05.9]} 34... Ra8 {[%clk 0:00:39.1]} 35.
Rb2 {[%clk 0:00:04.5]} 35... Ra3+ {[%clk 0:00:37.1]} 36. Rb3 {[%clk 0:00:04.6]}
36... Rxb3+ {[%clk 0:00:31.4]} 37. Bxb3 {[%clk 0:00:04.6]} 37... Bd7 {[%clk
0:00:30.8]} 38. b6 {[%clk 0:00:03.6]} 38... cxb6 {[%clk 0:00:30.2]} 39. cxb6
{[%clk 0:00:04]} 39... Kf6 {[%clk 0:00:27.7]} 40. d6 {[%clk 0:00:03.2]} 40...
Bc6 {[%clk 0:00:21.6]} 41. Bc4 {[%clk 0:00:02]} 41... g5 {[%clk 0:00:16.9]} 42.
Bb3 {[%clk 0:00:01]} 42... Kf5 {[%clk 0:00:14.7]} 0-1

[Event "Late-Titled-Tuesday-Blitz-March-19-2024"]
[Site "Chess.com"]
[Date "2024.03.19"]
[Round "9"]
[White "mbachez"]
[Black "Adar_07"]
[Result "1-0"]
[WhiteElo "2669"]
[BlackElo "2818"]
[TimeControl "180+1"]
[EndTime "15:43:40 PDT"]
[Termination "mbachez won by checkmate"]

1. e4 {[%clk 0:03:00.9]} 1... e6 {[%clk 0:02:59.4]} 2. d4 {[%clk 0:03:00.7]}
2... d5 {[%clk 0:03:00.3]} 3. Nd2 {[%clk 0:03:00.2]} 3... Nf6 {[%clk 0:03:00.2]}
4. e5 {[%clk 0:03:00]} 4... Nfd7 {[%clk 0:03:00.9]} 5. Bd3 {[%clk 0:02:58]} 5...
c5 {[%clk 0:03:01.8]} 6. c3 {[%clk 0:02:58.5]} 6... Nc6 {[%clk 0:03:02.5]} 7.
Ndf3 {[%clk 0:02:58.8]} 7... Qb6 {[%clk 0:02:58.5]} 8. Ne2 {[%clk 0:02:58.7]}
8... cxd4 {[%clk 0:02:52.9]} 9. cxd4 {[%clk 0:02:59]} 9... f6 {[%clk 0:02:53.4]}
10. exf6 {[%clk 0:02:59.4]} 10... Nxf6 {[%clk 0:02:54.3]} 11. O-O {[%clk
0:02:59.3]} 11... Bd6 {[%clk 0:02:54.4]} 12. h3 {[%clk 0:02:54.7]} 12... O-O
{[%clk 0:02:54]} 13. Nc3 {[%clk 0:02:52.2]} 13... Kh8 {[%clk 0:02:39.2]} 14. Bb1
{[%clk 0:02:50.8]} 14... Bd7 {[%clk 0:02:30.7]} 15. a3 {[%clk 0:02:46.6]} 15...
Rae8 {[%clk 0:02:27.6]} 16. Qd3 {[%clk 0:02:37.4]} 16... g6 {[%clk 0:01:37.7]}
17. Bh6 {[%clk 0:02:30.2]} 17... Qxb2 {[%clk 0:01:30.8]} 18. Bxf8 {[%clk
0:02:20.3]} 18... Rxf8 {[%clk 0:01:31.7]} 19. Ra2 {[%clk 0:02:08.5]} 19... Qb6
{[%clk 0:01:29.8]} 20. Re2 {[%clk 0:02:08.2]} 20... Nh5 {[%clk 0:00:44.7]} 21.
g3 {[%clk 0:01:59.5]} 21... Qb3 {[%clk 0:00:41.8]} 22. Kg2 {[%clk 0:01:44]}
22... Qxa3 {[%clk 0:00:37.1]} 23. Ng5 {[%clk 0:01:39.5]} 23... Rf6 {[%clk
0:00:19.5]} 24. Qe3 {[%clk 0:01:35.6]} 24... Bf4 {[%clk 0:00:11.9]} 25. gxf4
{[%clk 0:01:31.4]} 25... Nxf4+ {[%clk 0:00:12.8]} 26. Kh1 {[%clk 0:01:22.1]}
26... Nxe2 {[%clk 0:00:11.9]} 27. Qxe2 {[%clk 0:00:59.6]} 27... Qxc3 {[%clk
0:00:11.8]} 28. Rg1 {[%clk 0:00:59.7]} 28... Nxd4 {[%clk 0:00:09.4]} 29. Qe5
{[%clk 0:00:58.1]} 29... Kg7 {[%clk 0:00:09.1]} 30. Rg3 {[%clk 0:00:42.6]} 30...
Qc1+ {[%clk 0:00:06.4]} 31. Kg2 {[%clk 0:00:41.7]} 31... Qf4 {[%clk 0:00:03.5]}
32. Qe1 {[%clk 0:00:33.9]} 32... Bc6 {[%clk 0:00:02.7]} 33. Rg4 {[%clk
0:00:27.9]} 33... Nf3 {[%clk 0:00:03.3]} 34. Nxe6+ {[%clk 0:00:17.9]} 34... Kh8
{[%clk 0:00:03.9]} 35. Qc3 {[%clk 0:00:15]} 35... d4 {[%clk 0:00:03.7]} 36. Rxf4
{[%clk 0:00:13.1]} 36... Rxf4 {[%clk 0:00:02.1]} 37. Qc5 {[%clk 0:00:12.2]}
37... Rf5 {[%clk 0:00:01.4]} 38. Qd6 {[%clk 0:00:11.1]} 38... Ng5+ {[%clk
0:00:01.4]} 39. Kf1 {[%clk 0:00:10.4]} 39... Bb5+ {[%clk 0:00:01.3]} 40. Ke1
{[%clk 0:00:09.9]} 40... Re5+ {[%clk 0:00:02]} 41. Qxe5+ {[%clk 0:00:09.3]}
41... Kg8 {[%clk 0:00:02.1]} 42. Qg7# {[%clk 0:00:09.4]} 1-0